[Event "Early-Titled-Tuesday-Blitz-November-28-2023"]
[Site "Chess.com"]
[Date "2023.11.28"]
[Round "4"]
[White "Eloist"]
[Black "Ariadna_Atreides"]
[Result "0-1"]
[WhiteElo "2368"]
[BlackElo "2205"]
[TimeControl "180+1"]
[EndTime "8:34:42 PST"]
[Termination "Ariadna_Atreides won by resignation"]

1. e4 {[%clk 0:02:50.8]} 1... c6 {[%clk 0:02:53.6]} 2. Nf3 {[%clk 0:02:49.3]}
2... d5 {[%clk 0:02:54.5]} 3. Nc3 {[%clk 0:02:49.2]} 3... dxe4 {[%clk
0:02:54.6]} 4. Nxe4 {[%clk 0:02:48.6]} 4... Nf6 {[%clk 0:02:55.2]} 5. Nxf6+
{[%clk 0:02:46.6]} 5... exf6 {[%clk 0:02:56.1]} 6. d4 {[%clk 0:02:45.3]} 6...
Bd6 {[%clk 0:02:50.6]} 7. Bd3 {[%clk 0:02:39.8]} 7... Bg4 {[%clk 0:02:49.1]} 8.
O-O {[%clk 0:02:34]} 8... O-O {[%clk 0:02:48.8]} 9. h3 {[%clk 0:02:33.3]} 9...
Bh5 {[%clk 0:02:43.8]} 10. Re1 {[%clk 0:02:32.8]} 10... Bc7 {[%clk 0:02:41]} 11.
c3 {[%clk 0:02:09.2]} 11... Qd6 {[%clk 0:02:33]} 12. g3 {[%clk 0:02:08.5]} 12...
Qd7 {[%clk 0:02:26.4]} 13. Kg2 {[%clk 0:02:06.6]} 13... Na6 {[%clk 0:02:19]} 14.
Qc2 {[%clk 0:01:58.8]} 14... Bxf3+ {[%clk 0:02:10.3]} 15. Kxf3 {[%clk
0:01:58.3]} 15... Qxh3 {[%clk 0:02:10.6]} 16. Rh1 {[%clk 0:01:55.1]} 16... Qxh1+
{[%clk 0:02:09.2]} 0-1

[Event "Early-Titled-Tuesday-Blitz-November-28-2023"]
[Site "Chess.com"]
[Date "2023.11.28"]
[Round "4"]
[White "Auger_Pi"]
[Black "esrosenberg"]
[Result "1-0"]
[WhiteElo "2610"]
[BlackElo "2399"]
[TimeControl "180+1"]
[EndTime "8:34:57 PST"]
[Termination "Auger_Pi won by resignation"]

1. e4 {[%clk 0:03:00.9]} 1... e5 {[%clk 0:02:59.6]} 2. Nf3 {[%clk 0:03:01.1]}
2... Nc6 {[%clk 0:03:00.1]} 3. Bc4 {[%clk 0:03:01.6]} 3... Nf6 {[%clk
0:03:00.2]} 4. d3 {[%clk 0:03:01.3]} 4... Bc5 {[%clk 0:03:00]} 5. c3 {[%clk
0:03:01.8]} 5... d6 {[%clk 0:02:59.7]} 6. O-O {[%clk 0:03:01.7]} 6... a6 {[%clk
0:03:00.1]} 7. a4 {[%clk 0:03:00]} 7... Ba7 {[%clk 0:03:00.1]} 8. Re1 {[%clk
0:02:51]} 8... h6 {[%clk 0:02:51.3]} 9. Nbd2 {[%clk 0:02:48.9]} 9... Ng4 {[%clk
0:02:47.9]} 10. Re2 {[%clk 0:02:45.6]} 10... O-O {[%clk 0:02:48.4]} 11. h3
{[%clk 0:02:37.6]} 11... Nf6 {[%clk 0:02:48.2]} 12. Re1 {[%clk 0:02:38.2]} 12...
Re8 {[%clk 0:02:47.3]} 13. b4 {[%clk 0:02:37]} 13... Be6 {[%clk 0:02:47.1]} 14.
Bxe6 {[%clk 0:02:34.9]} 14... Rxe6 {[%clk 0:02:47.2]} 15. Bb2 {[%clk 0:02:35.6]}
15... Qd7 {[%clk 0:02:39.2]} 16. d4 {[%clk 0:02:34]} 16... exd4 {[%clk
0:02:38.2]} 17. cxd4 {[%clk 0:02:22.4]} 17... d5 {[%clk 0:02:38.3]} 18. e5
{[%clk 0:02:17.3]} 18... Nh7 {[%clk 0:02:37.3]} 19. b5 {[%clk 0:02:14.7]} 19...
Ne7 {[%clk 0:02:31.3]} 20. Qb3 {[%clk 0:02:11.4]} 20... c6 {[%clk 0:02:08.9]}
21. b6 {[%clk 0:02:09.2]} 21... Bb8 {[%clk 0:02:08.9]} 22. Qd3 {[%clk 0:01:59]}
22... f6 {[%clk 0:02:08.9]} 23. Nb3 {[%clk 0:01:58.5]} 23... fxe5 {[%clk
0:02:08.2]} 24. Nc5 {[%clk 0:01:57.1]} 24... e4 {[%clk 0:02:06.3]} 25. Nxd7
{[%clk 0:01:56.6]} 1-0

[Event "Early-Titled-Tuesday-Blitz-November-28-2023"]
[Site "Chess.com"]
[Date "2023.11.28"]
[Round "4"]
[White "zeitnotakrobat"]
[Black "abykhovsky"]
[Result "0-1"]
[WhiteElo "2414"]
[BlackElo "2653"]
[TimeControl "180+1"]
[EndTime "8:35:52 PST"]
[Termination "abykhovsky won by resignation"]

1. Nf3 {[%clk 0:03:00.9]} 1... c5 {[%clk 0:02:59.6]} 2. c4 {[%clk 0:03:00.6]}
2... g6 {[%clk 0:02:59.1]} 3. g3 {[%clk 0:03:00.6]} 3... Bg7 {[%clk 0:02:59.7]}
4. Bg2 {[%clk 0:03:00.8]} 4... Nc6 {[%clk 0:03:00.6]} 5. O-O {[%clk 0:03:00.8]}
5... e6 {[%clk 0:03:01.5]} 6. Nc3 {[%clk 0:02:59.7]} 6... Nge7 {[%clk 0:03:01]}
7. d3 {[%clk 0:02:58.8]} 7... O-O {[%clk 0:02:59.9]} 8. Bg5 {[%clk 0:02:53.5]}
8... h6 {[%clk 0:02:59.8]} 9. Bd2 {[%clk 0:02:51.7]} 9... d6 {[%clk 0:02:59.9]}
10. a3 {[%clk 0:02:51.4]} 10... b6 {[%clk 0:02:59.6]} 11. Rb1 {[%clk 0:02:49.8]}
11... Bb7 {[%clk 0:02:59.8]} 12. b4 {[%clk 0:02:49.5]} 12... Qd7 {[%clk
0:03:00.2]} 13. Qc1 {[%clk 0:02:45.4]} 13... Kh7 {[%clk 0:02:59.4]} 14. h4
{[%clk 0:02:43]} 14... f5 {[%clk 0:02:57.3]} 15. Re1 {[%clk 0:02:29.1]} 15...
Rad8 {[%clk 0:02:54.4]} 16. Nb5 {[%clk 0:02:18.4]} 16... e5 {[%clk 0:02:47.7]}
17. Nc3 {[%clk 0:02:10.8]} 17... Nd4 {[%clk 0:02:42.2]} 18. bxc5 {[%clk
0:01:43.3]} 18... dxc5 {[%clk 0:02:40.5]} 19. Nxd4 {[%clk 0:01:36.5]} 19... exd4
{[%clk 0:02:41.4]} 20. Bxb7 {[%clk 0:01:14.3]} 20... dxc3 {[%clk 0:02:40.6]} 21.
Bxc3 {[%clk 0:01:11.4]} 21... Bxc3 {[%clk 0:02:41.5]} 22. Qxc3 {[%clk
0:01:10.8]} 22... Qxb7 {[%clk 0:02:41]} 23. Qe5 {[%clk 0:01:06.5]} 23... Nc6
{[%clk 0:02:41]} 24. Qxc5 {[%clk 0:01:04.2]} 24... Rfe8 {[%clk 0:02:34.8]} 25.
Qb5 {[%clk 0:00:59.9]} 25... Nd4 {[%clk 0:02:33.5]} 26. Qb2 {[%clk 0:00:59.2]}
26... f4 {[%clk 0:02:34]} 27. gxf4 {[%clk 0:00:52.1]} 27... Qd7 {[%clk
0:02:34.2]} 0-1

[Event "Early-Titled-Tuesday-Blitz-November-28-2023"]
[Site "Chess.com"]
[Date "2023.11.28"]
[Round "4"]
[White "h4parah5"]
[Black "RodokininEV"]
[Result "1-0"]
[WhiteElo "2936"]
[BlackElo "2606"]
[TimeControl "180+1"]
[EndTime "8:36:13 PST"]
[Termination "h4parah5 won by resignation"]

1. Nf3 {[%clk 0:03:00.9]} 1... Nf6 {[%clk 0:02:59.3]} 2. b3 {[%clk 0:03:01.5]}
2... g6 {[%clk 0:02:59.7]} 3. Bb2 {[%clk 0:03:02.2]} 3... Bg7 {[%clk 0:03:00.4]}
4. d4 {[%clk 0:03:02.2]} 4... O-O {[%clk 0:03:00.6]} 5. e3 {[%clk 0:03:03.1]}
5... d5 {[%clk 0:03:00.8]} 6. Be2 {[%clk 0:03:02.8]} 6... c6 {[%clk 0:03:01.3]}
7. O-O {[%clk 0:03:03.2]} 7... Nbd7 {[%clk 0:03:01.6]} 8. c4 {[%clk 0:03:03]}
8... Ne4 {[%clk 0:03:01]} 9. Na3 {[%clk 0:03:00.4]} 9... a5 {[%clk 0:02:57.3]}
10. cxd5 {[%clk 0:02:54.5]} 10... cxd5 {[%clk 0:02:57.2]} 11. Nb5 {[%clk
0:02:55.1]} 11... Nb8 {[%clk 0:02:53.5]} 12. Rc1 {[%clk 0:02:48.9]} 12... Nc6
{[%clk 0:02:53.5]} 13. Ne5 {[%clk 0:02:48.2]} 13... Bd7 {[%clk 0:02:40.1]} 14.
Nxd7 {[%clk 0:02:47.3]} 14... Qxd7 {[%clk 0:02:40.2]} 15. a3 {[%clk 0:02:41.5]}
15... Rfc8 {[%clk 0:02:39.2]} 16. Bd3 {[%clk 0:02:37.6]} 16... Nd6 {[%clk
0:02:34.9]} 17. Nc3 {[%clk 0:02:36.4]} 17... e6 {[%clk 0:02:29.3]} 18. Na4
{[%clk 0:02:34.5]} 18... Qe7 {[%clk 0:02:10.9]} 19. Nb6 {[%clk 0:02:33]} 19...
Rab8 {[%clk 0:02:09.2]} 20. Nxc8 {[%clk 0:02:32.1]} 20... Rxc8 {[%clk
0:02:10.1]} 21. Qe2 {[%clk 0:02:30.4]} 21... e5 {[%clk 0:02:05.1]} 22. dxe5
{[%clk 0:02:29.6]} 22... Nxe5 {[%clk 0:02:06]} 23. Rxc8+ {[%clk 0:02:27.4]}
23... Nxc8 {[%clk 0:02:05.3]} 24. Rc1 {[%clk 0:02:27.9]} 24... Nd6 {[%clk
0:02:05.3]} 25. Bd4 {[%clk 0:02:25.8]} 25... h5 {[%clk 0:02:03.1]} 26. h3 {[%clk
0:02:24.8]} 26... Ne4 {[%clk 0:01:52.7]} 27. Bxe4 {[%clk 0:02:23.2]} 27... dxe4
{[%clk 0:01:53.6]} 28. Qb5 {[%clk 0:02:18.2]} 28... Nd3 {[%clk 0:01:48.6]} 29.
Rc8+ {[%clk 0:02:17.2]} 29... Kh7 {[%clk 0:01:48.2]} 30. Qe8 {[%clk 0:02:15.5]}
30... Qxe8 {[%clk 0:01:08]} 31. Rxe8 {[%clk 0:02:16.4]} 31... Bxd4 {[%clk
0:00:58.8]} 32. exd4 {[%clk 0:02:15.7]} 32... f5 {[%clk 0:00:56.4]} 33. Re7+
{[%clk 0:02:14.7]} 33... Kg8 {[%clk 0:00:56.5]} 34. Rxb7 {[%clk 0:02:15.6]}
34... Nf4 {[%clk 0:00:53]} 35. Kf1 {[%clk 0:02:14.6]} 1-0

[Event "Early-Titled-Tuesday-Blitz-November-28-2023"]
[Site "Chess.com"]
[Date "2023.11.28"]
[Round "4"]
[White "sumopork"]
[Black "chess_blitz00"]
[Result "1-0"]
[WhiteElo "2827"]
[BlackElo "2503"]
[TimeControl "180+1"]
[EndTime "8:36:15 PST"]
[Termination "sumopork won by resignation"]

1. Nf3 {[%clk 0:02:57.6]} 1... d6 {[%clk 0:02:56.6]} 2. d4 {[%clk 0:02:57.4]}
2... Nf6 {[%clk 0:02:56.4]} 3. c4 {[%clk 0:02:56.4]} 3... Nbd7 {[%clk
0:02:54.1]} 4. Nc3 {[%clk 0:02:56.2]} 4... e5 {[%clk 0:02:54.1]} 5. e4 {[%clk
0:02:56.4]} 5... exd4 {[%clk 0:02:51.4]} 6. Nxd4 {[%clk 0:02:57.3]} 6... Nc5
{[%clk 0:02:48.2]} 7. f3 {[%clk 0:02:53.9]} 7... g6 {[%clk 0:02:44.2]} 8. Be2
{[%clk 0:02:51.7]} 8... Bg7 {[%clk 0:02:44.6]} 9. O-O {[%clk 0:02:51.9]} 9...
O-O {[%clk 0:02:43.9]} 10. Be3 {[%clk 0:02:51.2]} 10... a5 {[%clk 0:02:40.2]}
11. Ndb5 {[%clk 0:02:51]} 11... c6 {[%clk 0:02:35.5]} 12. Nxd6 {[%clk
0:02:35.8]} 12... Ne6 {[%clk 0:02:29.3]} 13. e5 {[%clk 0:02:30.1]} 13... Nh5
{[%clk 0:02:15]} 14. Nxc8 {[%clk 0:02:27.7]} 14... Rxc8 {[%clk 0:02:07.4]} 15.
Qxd8 {[%clk 0:02:04.6]} 15... Rfxd8 {[%clk 0:02:08.3]} 16. f4 {[%clk 0:02:04.4]}
16... Bf8 {[%clk 0:01:47.6]} 17. Bxh5 {[%clk 0:02:01.2]} 17... gxh5 {[%clk
0:01:47.8]} 18. Ne4 {[%clk 0:01:45.4]} 18... Rd3 {[%clk 0:01:41.1]} 19. Kf2
{[%clk 0:01:45.1]} 19... Rcd8 {[%clk 0:01:34.9]} 20. Ke2 {[%clk 0:01:41.4]}
20... Bh6 {[%clk 0:01:25]} 21. g3 {[%clk 0:01:34.7]} 21... h4 {[%clk 0:01:18.3]}
22. Rad1 {[%clk 0:01:33.8]} 22... R3d7 {[%clk 0:01:10.6]} 23. Rxd7 {[%clk
0:01:32.4]} 23... Rxd7 {[%clk 0:01:11.5]} 24. Nf6+ {[%clk 0:01:32.6]} 1-0

[Event "Early-Titled-Tuesday-Blitz-November-28-2023"]
[Site "Chess.com"]
[Date "2023.11.28"]
[Round "4"]
[White "LaPiToB"]
[Black "Mikhail_Golubev"]
[Result "0-1"]
[WhiteElo "2261"]
[BlackElo "2576"]
[TimeControl "180+1"]
[EndTime "8:36:15 PST"]
[Termination "Mikhail_Golubev won by resignation"]

1. d4 {[%clk 0:02:31.1]} 1... Nf6 {[%clk 0:02:59.4]} 2. c4 {[%clk 0:02:29]} 2...
g6 {[%clk 0:02:58.9]} 3. Nc3 {[%clk 0:02:29.1]} 3... Bg7 {[%clk 0:02:59.1]} 4.
e4 {[%clk 0:02:29.7]} 4... d6 {[%clk 0:02:59.2]} 5. Be2 {[%clk 0:02:29.9]} 5...
O-O {[%clk 0:02:59]} 6. Bg5 {[%clk 0:02:30.6]} 6... c5 {[%clk 0:02:58.5]} 7. d5
{[%clk 0:02:30.2]} 7... h6 {[%clk 0:02:58.3]} 8. Be3 {[%clk 0:02:29.6]} 8... e6
{[%clk 0:02:58.5]} 9. Qd2 {[%clk 0:02:29.3]} 9... exd5 {[%clk 0:02:58.5]} 10.
exd5 {[%clk 0:02:26.3]} 10... Kh7 {[%clk 0:02:57.6]} 11. Bd3 {[%clk 0:02:25.3]}
11... Ng4 {[%clk 0:02:33.6]} 12. Nf3 {[%clk 0:02:02.1]} 12... Nxe3 {[%clk
0:02:30.4]} 13. fxe3 {[%clk 0:02:01]} 13... Nd7 {[%clk 0:02:25.5]} 14. O-O
{[%clk 0:01:59.3]} 14... Ne5 {[%clk 0:02:22.1]} 15. Nxe5 {[%clk 0:01:57.9]}
15... Bxe5 {[%clk 0:02:23]} 16. Rf2 {[%clk 0:01:41.1]} 16... Kg7 {[%clk
0:02:21.8]} 17. Raf1 {[%clk 0:01:39.2]} 17... Qe7 {[%clk 0:02:17.9]} 18. e4
{[%clk 0:01:32.2]} 18... Bd4 {[%clk 0:02:12.8]} 19. Ne2 {[%clk 0:01:24.3]} 19...
Bxf2+ {[%clk 0:02:10.1]} 20. Rxf2 {[%clk 0:01:25.2]} 20... Qe5 {[%clk
0:01:58.3]} 21. Nf4 {[%clk 0:01:16.7]} 21... Bd7 {[%clk 0:01:54.4]} 22. Bb1
{[%clk 0:01:13.6]} 22... Rae8 {[%clk 0:01:45.4]} 23. h4 {[%clk 0:01:07.1]} 23...
f5 {[%clk 0:01:38.7]} 0-1

[Event "Early-Titled-Tuesday-Blitz-November-28-2023"]
[Site "Chess.com"]
[Date "2023.11.28"]
[Round "4"]
[White "FARIZA2018"]
[Black "Akylbek2021"]
[Result "1-0"]
[WhiteElo "2530"]
[BlackElo "2228"]
[TimeControl "180+1"]
[EndTime "8:36:41 PST"]
[Termination "FARIZA2018 won by checkmate"]

1. e4 {[%clk 0:03:00.9]} 1... e5 {[%clk 0:02:58.6]} 2. Nf3 {[%clk 0:03:01.3]}
2... Nc6 {[%clk 0:02:59.3]} 3. Bb5 {[%clk 0:03:01.5]} 3... a6 {[%clk 0:03:00]}
4. Ba4 {[%clk 0:03:01.8]} 4... Nf6 {[%clk 0:03:00.2]} 5. O-O {[%clk 0:03:02]}
5... Be7 {[%clk 0:03:00.9]} 6. Re1 {[%clk 0:03:01.4]} 6... b5 {[%clk 0:03:01.5]}
7. Bb3 {[%clk 0:03:01.4]} 7... O-O {[%clk 0:03:02]} 8. c3 {[%clk 0:02:59.8]}
8... d5 {[%clk 0:03:01.7]} 9. exd5 {[%clk 0:02:59.9]} 9... Nxd5 {[%clk
0:03:02.6]} 10. Nxe5 {[%clk 0:02:59.7]} 10... Nxe5 {[%clk 0:03:02.9]} 11. Rxe5
{[%clk 0:03:00.2]} 11... Nf6 {[%clk 0:03:03.6]} 12. h3 {[%clk 0:02:59.2]} 12...
Bd6 {[%clk 0:03:03.6]} 13. Re1 {[%clk 0:02:59.5]} 13... Ng4 {[%clk 0:03:04]} 14.
d4 {[%clk 0:02:21]} 14... Bh2+ {[%clk 0:01:10.8]} 15. Kf1 {[%clk 0:02:16.9]}
15... Nxf2 {[%clk 0:01:07.2]} 16. Qf3 {[%clk 0:01:29.6]} 16... Qh4 {[%clk
0:00:54.3]} 17. Qxf7+ {[%clk 0:01:29.4]} 17... Rxf7 {[%clk 0:00:34.9]} 18. Re8#
{[%clk 0:01:29.1]} 1-0

[Event "Early-Titled-Tuesday-Blitz-November-28-2023"]
[Site "Chess.com"]
[Date "2023.11.28"]
[Round "4"]
[White "MeesvanOsch"]
[Black "TheCavemanChess"]
[Result "0-1"]
[WhiteElo "2411"]
[BlackElo "2715"]
[TimeControl "180+1"]
[EndTime "8:36:43 PST"]
[Termination "TheCavemanChess won by resignation"]

1. e4 {[%clk 0:02:55.6]} 1... e6 {[%clk 0:02:59.2]} 2. d4 {[%clk 0:02:54.9]}
2... d5 {[%clk 0:03:00.1]} 3. Nc3 {[%clk 0:02:54.8]} 3... Nf6 {[%clk 0:03:00]}
4. e5 {[%clk 0:02:49.9]} 4... Nfd7 {[%clk 0:03:00.1]} 5. f4 {[%clk 0:02:50.7]}
5... c5 {[%clk 0:03:01]} 6. Nf3 {[%clk 0:02:51.2]} 6... Nc6 {[%clk 0:03:01.9]}
7. Ne2 {[%clk 0:02:50]} 7... Be7 {[%clk 0:02:56.7]} 8. Be3 {[%clk 0:02:49.8]}
8... Qb6 {[%clk 0:02:53.5]} 9. Qc1 {[%clk 0:02:49.6]} 9... O-O {[%clk
0:02:52.9]} 10. c3 {[%clk 0:02:47.9]} 10... f6 {[%clk 0:02:53]} 11. Ng3 {[%clk
0:02:30.5]} 11... cxd4 {[%clk 0:02:45.2]} 12. Nxd4 {[%clk 0:02:28.6]} 12... Bc5
{[%clk 0:02:41.1]} 13. exf6 {[%clk 0:02:03.4]} 13... Nxf6 {[%clk 0:02:36.4]} 14.
Qd2 {[%clk 0:01:54.7]} 14... Ng4 {[%clk 0:02:24.6]} 15. O-O-O {[%clk 0:01:45.1]}
15... Nxe3 {[%clk 0:02:21.7]} 16. Qxe3 {[%clk 0:01:46]} 16... Nxd4 {[%clk
0:02:22]} 17. cxd4 {[%clk 0:01:44.6]} 17... Bd6 {[%clk 0:02:22.6]} 18. Ne2
{[%clk 0:01:34.2]} 18... Bd7 {[%clk 0:02:16]} 19. g3 {[%clk 0:01:33.2]} 19...
Ba4 {[%clk 0:02:00]} 20. Re1 {[%clk 0:01:22]} 20... e5 {[%clk 0:01:52.9]} 21.
fxe5 {[%clk 0:01:06]} 21... Bb4 {[%clk 0:01:52.9]} 22. Nc3 {[%clk 0:00:52.2]}
22... Rac8 {[%clk 0:01:53.2]} 23. Bh3 {[%clk 0:00:46.6]} 23... Rxc3+ {[%clk
0:01:53.1]} 24. Qxc3 {[%clk 0:00:21.9]} 24... Bxc3 {[%clk 0:01:52.7]} 25. bxc3
{[%clk 0:00:22.8]} 25... Rf2 {[%clk 0:01:52.7]} 0-1

[Event "Early-Titled-Tuesday-Blitz-November-28-2023"]
[Site "Chess.com"]
[Date "2023.11.28"]
[Round "4"]
[White "jens1102"]
[Black "crosky"]
[Result "1-0"]
[WhiteElo "2628"]
[BlackElo "2325"]
[TimeControl "180+1"]
[EndTime "8:36:47 PST"]
[Termination "jens1102 won by checkmate"]

1. e4 {[%clk 0:02:59.4]} 1... c6 {[%clk 0:03:00]} 2. Nf3 {[%clk 0:02:59.8]} 2...
d5 {[%clk 0:03:00.9]} 3. Nc3 {[%clk 0:03:00.5]} 3... dxe4 {[%clk 0:03:00.8]} 4.
Nxe4 {[%clk 0:03:01.4]} 4... Nf6 {[%clk 0:03:01.4]} 5. Nxf6+ {[%clk 0:03:02]}
5... exf6 {[%clk 0:03:02.3]} 6. d4 {[%clk 0:03:02.1]} 6... Bd6 {[%clk
0:03:02.6]} 7. Bd3 {[%clk 0:03:00]} 7... O-O {[%clk 0:03:01.6]} 8. O-O {[%clk
0:03:00.7]} 8... Re8 {[%clk 0:03:01.5]} 9. c3 {[%clk 0:03:00.9]} 9... Nd7 {[%clk
0:03:01.5]} 10. Qc2 {[%clk 0:03:01.4]} 10... Nf8 {[%clk 0:03:01.9]} 11. Be3
{[%clk 0:03:01.3]} 11... Bg4 {[%clk 0:03:01.5]} 12. Nd2 {[%clk 0:02:59.6]} 12...
Qd7 {[%clk 0:02:59.5]} 13. Ne4 {[%clk 0:02:59.6]} 13... Bc7 {[%clk 0:02:57.1]}
14. Rfe1 {[%clk 0:02:58.7]} 14... Ng6 {[%clk 0:02:54.7]} 15. Ng3 {[%clk
0:02:58.3]} 15... Nf4 {[%clk 0:02:52.1]} 16. Bxf4 {[%clk 0:02:57.2]} 16... Bxf4
{[%clk 0:02:51.6]} 17. Bf5 {[%clk 0:02:57.8]} 17... Bxf5 {[%clk 0:02:38.9]} 18.
Qxf5 {[%clk 0:02:58.7]} 18... Qxf5 {[%clk 0:02:24.8]} 19. Nxf5 {[%clk
0:02:59.6]} 19... g6 {[%clk 0:02:25.7]} 20. Ne3 {[%clk 0:02:59.7]} 20... Bxe3
{[%clk 0:01:58.3]} 21. Rxe3 {[%clk 0:02:59.8]} 21... Rxe3 {[%clk 0:01:58.1]} 22.
fxe3 {[%clk 0:03:00.7]} 22... f5 {[%clk 0:01:58.6]} 23. Kf2 {[%clk 0:03:01.6]}
23... Re8 {[%clk 0:01:57.4]} 24. a4 {[%clk 0:03:01.3]} 24... a5 {[%clk
0:01:51.4]} 25. g3 {[%clk 0:02:59.3]} 25... Kf8 {[%clk 0:01:50.2]} 26. b4 {[%clk
0:02:59.5]} 26... Ra8 {[%clk 0:01:29.2]} 27. Ke2 {[%clk 0:02:57.2]} 27... Ke7
{[%clk 0:01:29.1]} 28. Kd3 {[%clk 0:02:57.5]} 28... Kd6 {[%clk 0:01:29.3]} 29.
Kc4 {[%clk 0:02:57.7]} 29... Re8 {[%clk 0:01:24.1]} 30. Kd3 {[%clk 0:02:56.1]}
30... Ra8 {[%clk 0:01:23.7]} 31. b5 {[%clk 0:02:54.6]} 31... cxb5 {[%clk
0:01:16.7]} 32. axb5 {[%clk 0:02:55.5]} 32... b6 {[%clk 0:01:17.5]} 33. c4
{[%clk 0:02:55.3]} 33... Rc8 {[%clk 0:01:16.7]} 34. Re1 {[%clk 0:02:52]} 34...
h5 {[%clk 0:01:15.2]} 35. e4 {[%clk 0:02:52.2]} 35... fxe4+ {[%clk 0:01:16.1]}
36. Rxe4 {[%clk 0:02:52.9]} 36... f5 {[%clk 0:01:10.7]} 37. Re5 {[%clk
0:02:50.2]} 37... Rf8 {[%clk 0:00:53.5]} 38. h3 {[%clk 0:02:47.8]} 38... f4
{[%clk 0:00:53.2]} 39. gxf4 {[%clk 0:02:48.1]} 39... Rxf4 {[%clk 0:00:54.1]} 40.
Rg5 {[%clk 0:02:48.1]} 40... Rf3+ {[%clk 0:00:52.7]} 41. Ke4 {[%clk 0:02:48.5]}
41... Rxh3 {[%clk 0:00:51.8]} 42. Rxg6+ {[%clk 0:02:49.1]} 42... Kc7 {[%clk
0:00:52.5]} 43. Kd5 {[%clk 0:02:49.3]} 43... a4 {[%clk 0:00:46.9]} 44. Rg7+
{[%clk 0:02:49.6]} 44... Kb8 {[%clk 0:00:37.6]} 45. c5 {[%clk 0:02:47.4]} 45...
a3 {[%clk 0:00:36.6]} 46. Kc6 {[%clk 0:02:45.6]} 46... bxc5 {[%clk 0:00:14.1]}
47. Rg8+ {[%clk 0:02:45.7]} 47... Ka7 {[%clk 0:00:14]} 48. b6+ {[%clk
0:02:46.6]} 48... Ka6 {[%clk 0:00:14.1]} 49. Ra8# {[%clk 0:02:47.5]} 1-0

[Event "Early-Titled-Tuesday-Blitz-November-28-2023"]
[Site "Chess.com"]
[Date "2023.11.28"]
[Round "4"]
[White "MasterKroket"]
[Black "Willi_Skibbe"]
[Result "1-0"]
[WhiteElo "2502"]
[BlackElo "2272"]
[TimeControl "180+1"]
[EndTime "8:36:50 PST"]
[Termination "MasterKroket won on time"]

1. e4 {[%clk 0:03:00.9]} 1... e6 {[%clk 0:02:52.1]} 2. d4 {[%clk 0:03:00.4]}
2... d5 {[%clk 0:02:44.1]} 3. Nc3 {[%clk 0:03:00.4]} 3... Nf6 {[%clk 0:02:42.2]}
4. e5 {[%clk 0:03:00.9]} 4... Nfd7 {[%clk 0:02:42.5]} 5. f4 {[%clk 0:03:01.5]}
5... c5 {[%clk 0:02:43.2]} 6. Nf3 {[%clk 0:03:02.2]} 6... Nc6 {[%clk 0:02:43.9]}
7. Be3 {[%clk 0:03:02.6]} 7... a6 {[%clk 0:02:44.5]} 8. Qd2 {[%clk 0:03:01.4]}
8... b5 {[%clk 0:02:44.9]} 9. dxc5 {[%clk 0:03:01.4]} 9... Bxc5 {[%clk 0:02:44]}
10. Bxc5 {[%clk 0:02:59.9]} 10... Nxc5 {[%clk 0:02:44.6]} 11. Qf2 {[%clk
0:03:00.4]} 11... Ne4 {[%clk 0:02:39.2]} 12. Nxe4 {[%clk 0:02:55]} 12... dxe4
{[%clk 0:02:40.1]} 13. Nd2 {[%clk 0:02:50.1]} 13... Qd5 {[%clk 0:00:47.4]} 14.
c4 {[%clk 0:02:43.4]} 14... bxc4 {[%clk 0:00:37.8]} 15. Bxc4 {[%clk 0:02:43.6]}
15... Qa5 {[%clk 0:00:38.4]} 16. O-O {[%clk 0:02:40.3]} 16... O-O {[%clk
0:00:03.6]} 17. Nxe4 {[%clk 0:02:38.6]} 17... Bb7 {[%clk 0:00:04.2]} 18. Nd6
{[%clk 0:02:32.5]} 18... Rab8 {[%clk 0:00:04.5]} 19. Rac1 {[%clk 0:02:27.4]}
19... Ne7 {[%clk 0:00:03.7]} 20. f5 {[%clk 0:02:09]} 20... Nxf5 {[%clk 0:00:02]}
21. Nxf5 {[%clk 0:02:08.8]} 21... exf5 {[%clk 0:00:02.5]} 22. Qxf5 {[%clk
0:02:07.5]} 22... Qb6+ {[%clk 0:00:02.2]} 23. Rf2 {[%clk 0:02:02.5]} 1-0

[Event "Early-Titled-Tuesday-Blitz-November-28-2023"]
[Site "Chess.com"]
[Date "2023.11.28"]
[Round "4"]
[White "Gyulamiryan-koryun"]
[Black "spotbet"]
[Result "0-1"]
[WhiteElo "1914"]
[BlackElo "2429"]
[TimeControl "180+1"]
[EndTime "8:36:51 PST"]
[Termination "spotbet won on time"]

1. e4 {[%clk 0:01:45.7]} 1... e6 {[%clk 0:02:55.1]} 2. d4 {[%clk 0:01:27.6]}
2... Ke7 {[%clk 0:02:55.5]} 3. f4 {[%clk 0:01:20.8]} 3... Qe8 {[%clk 0:02:55.8]}
4. Nf3 {[%clk 0:01:19.5]} 4... Kd8 {[%clk 0:02:56.3]} 5. Bd3 {[%clk 0:01:16]}
5... Nf6 {[%clk 0:02:55]} 6. O-O {[%clk 0:01:14.9]} 6... Be7 {[%clk 0:02:54.9]}
7. h3 {[%clk 0:01:14.7]} 7... b6 {[%clk 0:02:55.1]} 8. Be3 {[%clk 0:01:14.2]}
8... Bb7 {[%clk 0:02:55.6]} 9. Nbd2 {[%clk 0:01:14.2]} 9... d5 {[%clk
0:02:54.9]} 10. e5 {[%clk 0:01:13.6]} 10... Nfd7 {[%clk 0:02:55.4]} 11. a3
{[%clk 0:01:09]} 11... a5 {[%clk 0:02:53.7]} 12. c3 {[%clk 0:01:05.3]} 12... Ba6
{[%clk 0:02:54.1]} 13. Qe2 {[%clk 0:01:03.4]} 13... Bxd3 {[%clk 0:02:54]} 14.
Qxd3 {[%clk 0:01:03.6]} 14... h6 {[%clk 0:02:54]} 15. f5 {[%clk 0:01:03.7]}
15... Nc6 {[%clk 0:02:45.5]} 16. fxe6 {[%clk 0:01:01.2]} 16... fxe6 {[%clk
0:02:45.6]} 17. b4 {[%clk 0:00:56.2]} 17... Rf8 {[%clk 0:02:42.2]} 18. Qb5
{[%clk 0:00:44.9]} 18... Ndb8 {[%clk 0:02:36.6]} 19. c4 {[%clk 0:00:33.5]} 19...
axb4 {[%clk 0:02:28]} 20. axb4 {[%clk 0:00:31.7]} 20... Rxa1 {[%clk 0:02:27.7]}
21. Rxa1 {[%clk 0:00:30.6]} 21... Nxb4 {[%clk 0:02:28.2]} 22. Ra8 {[%clk
0:00:25.1]} 22... Qxb5 {[%clk 0:02:25.7]} 23. Rxb8+ {[%clk 0:00:21.4]} 23... Kd7
{[%clk 0:02:26]} 24. cxb5 {[%clk 0:00:20.5]} 24... Rxb8 {[%clk 0:02:25.9]} 25.
g4 {[%clk 0:00:10.5]} 25... Ra8 {[%clk 0:02:26.2]} 26. g5 {[%clk 0:00:09]} 26...
hxg5 {[%clk 0:02:24.8]} 27. Bxg5 {[%clk 0:00:08.4]} 27... Bxg5 {[%clk
0:02:24.9]} 28. Nxg5 {[%clk 0:00:08.5]} 28... Nc2 {[%clk 0:02:25.4]} 29. Ndf3
{[%clk 0:00:05.3]} 29... Ra5 {[%clk 0:02:25.3]} 0-1